[Event "*** Titled Tuesday Blitz"]
[Site "Chess.com"]
[Date "2021.03.02"]
[Round "4"]
[White "indfraeng"]
[Black "LamaChampetre"]
[Result "0-1"]
[WhiteElo "2390"]
[BlackElo "2208"]
[TimeControl "180+1"]
[EndTime "10:37:37 PST"]
[Termination "LamaChampetre won by checkmate"]

1. d4 {[%clk 0:03:00.9]} 1... Nf6 {[%clk 0:02:52.9]} 2. c4 {[%clk 0:02:58.4]}
2... g6 {[%clk 0:02:52.3]} 3. g3 {[%clk 0:02:59]} 3... d5 {[%clk 0:02:52.3]} 4.
cxd5 {[%clk 0:02:57.4]} 4... Nxd5 {[%clk 0:02:53.2]} 5. Bg2 {[%clk 0:02:57.5]}
5... Nb6 {[%clk 0:02:51.8]} 6. Nf3 {[%clk 0:02:57.1]} 6... Bg7 {[%clk 0:02:51]}
7. O-O {[%clk 0:02:56.9]} 7... Nc6 {[%clk 0:02:50.9]} 8. e3 {[%clk 0:02:56]}
8... e5 {[%clk 0:02:51]} 9. b3 {[%clk 0:02:46.6]} 9... exd4 {[%clk 0:02:26.9]}
10. Bb2 {[%clk 0:02:46.5]} 10... Bg4 {[%clk 0:02:23.7]} 11. h3 {[%clk
0:02:35.7]} 11... Bxf3 {[%clk 0:02:22.8]} 12. Bxf3 {[%clk 0:02:36.6]} 12... O-O
{[%clk 0:02:17.1]} 13. Bxc6 {[%clk 0:02:35.3]} 13... bxc6 {[%clk 0:02:15.3]} 14.
Bxd4 {[%clk 0:02:35.4]} 14... Bxd4 {[%clk 0:02:02.4]} 15. Qxd4 {[%clk
0:02:36.3]} 15... Qxd4 {[%clk 0:02:01.8]} 16. exd4 {[%clk 0:02:37.2]} 16... Rad8
{[%clk 0:02:01.8]} 17. Rc1 {[%clk 0:02:33.1]} 17... Rxd4 {[%clk 0:01:52.8]} 18.
Na3 {[%clk 0:02:32.8]} 18... Re8 {[%clk 0:01:16.1]} 19. Rxc6 {[%clk 0:02:31.2]}
19... Re2 {[%clk 0:01:14.4]} 20. Rxc7 {[%clk 0:02:22.4]} 20... Rdd2 {[%clk
0:01:13.9]} 21. Rf1 {[%clk 0:02:22.9]} 21... Rxa2 {[%clk 0:01:13.3]} 22. Nc4
{[%clk 0:02:23.2]} 22... Nd5 {[%clk 0:00:47]} 23. Nd6 {[%clk 0:02:14]} 23...
Nxc7 {[%clk 0:00:44.1]} 24. Rc1 {[%clk 0:02:08.1]} 24... Rac2 {[%clk 0:00:31.2]}
25. Ra1 {[%clk 0:02:07.3]} 25... Rxf2 {[%clk 0:00:28.1]} 26. Rxa7 {[%clk
0:02:07.2]} 26... Rfd2 {[%clk 0:00:26.5]} 27. Ra1 {[%clk 0:02:03.2]} 27... Rxd6
{[%clk 0:00:25.5]} 28. Re1 {[%clk 0:02:04.1]} 28... Rdd2 {[%clk 0:00:23.9]} 29.
b4 {[%clk 0:02:05]} 29... Kg7 {[%clk 0:00:23.9]} 30. Kf1 {[%clk 0:02:05.9]}
30... Nb5 {[%clk 0:00:24]} 31. Kg1 {[%clk 0:02:06.8]} 31... Nc3 {[%clk
0:00:23.9]} 32. b5 {[%clk 0:02:06.6]} 32... Rg2+ {[%clk 0:00:23.7]} 33. Kh1
{[%clk 0:02:05.9]} 33... Rge2 {[%clk 0:00:22.9]} 34. Rf1 {[%clk 0:02:02.5]}
34... Ne4 {[%clk 0:00:22.3]} 35. Rb1 {[%clk 0:02:00.5]} 35... Nxg3+ {[%clk
0:00:21.4]} 36. Kg1 {[%clk 0:02:00.4]} 36... Rg2# {[%clk 0:00:21.5]} 0-1

[Event "*** Titled Tuesday Blitz"]
[Site "Chess.com"]
[Date "2021.03.02"]
[Round "4"]
[White "lamomiablanca"]
[Black "davidkalashian"]
[Result "0-1"]
[WhiteElo "2348"]
[BlackElo "2584"]
[TimeControl "180+1"]
[EndTime "10:37:40 PST"]
[Termination "davidkalashian won by checkmate"]

1. e4 {[%clk 0:03:00.9]} 1... c6 {[%clk 0:02:59.9]} 2. d4 {[%clk 0:02:58.4]}
2... g6 {[%clk 0:02:59.8]} 3. Nc3 {[%clk 0:02:52.2]} 3... Bg7 {[%clk 0:02:54.7]}
4. Nf3 {[%clk 0:02:50.8]} 4... d6 {[%clk 0:02:53.5]} 5. Be3 {[%clk 0:02:45.2]}
5... Nd7 {[%clk 0:02:50.8]} 6. Qd2 {[%clk 0:02:43.7]} 6... b5 {[%clk 0:02:49.2]}
7. Bd3 {[%clk 0:02:39.6]} 7... Ngf6 {[%clk 0:02:45.5]} 8. h3 {[%clk 0:02:39.1]}
8... O-O {[%clk 0:02:44]} 9. Ne2 {[%clk 0:02:36.2]} 9... e5 {[%clk 0:02:42.1]}
10. Ng3 {[%clk 0:02:25.5]} 10... d5 {[%clk 0:02:33.4]} 11. dxe5 {[%clk
0:02:10.6]} 11... Nxe5 {[%clk 0:02:30.9]} 12. Nxe5 {[%clk 0:01:54.1]} 12... dxe4
{[%clk 0:02:04.4]} 13. Be2 {[%clk 0:00:59.6]} 13... Qc7 {[%clk 0:02:00.7]} 14.
Bf4 {[%clk 0:00:48.6]} 14... g5 {[%clk 0:01:44.5]} 15. Bxg5 {[%clk 0:00:42.4]}
15... Qxe5 {[%clk 0:01:44]} 16. O-O {[%clk 0:00:38]} 16... Nd5 {[%clk
0:01:40.8]} 17. Be3 {[%clk 0:00:17.6]} 17... f5 {[%clk 0:01:37.4]} 18. Rfd1
{[%clk 0:00:15.1]} 18... f4 {[%clk 0:01:35.3]} 19. Bc5 {[%clk 0:00:14.6]} 19...
fxg3 {[%clk 0:01:34.8]} 20. Bxf8 {[%clk 0:00:15.5]} 20... gxf2+ {[%clk
0:01:32.8]} 21. Kh1 {[%clk 0:00:15.9]} 21... Bxf8 {[%clk 0:01:30.5]} 22. c4
{[%clk 0:00:14.7]} 22... Bd6 {[%clk 0:01:29.8]} 23. cxd5 {[%clk 0:00:14.9]}
23... Qh2# {[%clk 0:01:28.6]} 0-1

[Event "*** Titled Tuesday Blitz"]
[Site "Chess.com"]
[Date "2021.03.02"]
[Round "4"]
[White "aa175"]
[Black "ChessWarrior7197"]
[Result "0-1"]
[WhiteElo "2544"]
[BlackElo "2915"]
[TimeControl "180+1"]
[EndTime "10:37:43 PST"]
[Termination "ChessWarrior7197 won by resignation"]

1. d4 {[%clk 0:03:00.9]} 1... d5 {[%clk 0:03:00.3]} 2. Bf4 {[%clk 0:03:00.7]}
2... c5 {[%clk 0:02:59.2]} 3. e3 {[%clk 0:03:00.9]} 3... Nc6 {[%clk 0:02:59.5]}
4. Nf3 {[%clk 0:03:01]} 4... Nf6 {[%clk 0:03:00.1]} 5. Nbd2 {[%clk 0:03:00.4]}
5... Nh5 {[%clk 0:02:58.2]} 6. Be5 {[%clk 0:02:50.7]} 6... f6 {[%clk 0:02:56.7]}
7. c4 {[%clk 0:01:33.2]} 7... e6 {[%clk 0:02:45.9]} 8. cxd5 {[%clk 0:01:30.8]}
8... exd5 {[%clk 0:02:46.8]} 9. Bg3 {[%clk 0:01:30.3]} 9... cxd4 {[%clk
0:02:47.4]} 10. Nxd4 {[%clk 0:01:29.3]} 10... Nxg3 {[%clk 0:02:44.2]} 11. Nxc6
{[%clk 0:01:16.5]} 11... bxc6 {[%clk 0:02:44.3]} 12. hxg3 {[%clk 0:01:16.1]}
12... g6 {[%clk 0:02:35.2]} 13. Qc2 {[%clk 0:01:12.1]} 13... Kf7 {[%clk
0:01:48]} 14. Bd3 {[%clk 0:00:54.6]} 14... Kg7 {[%clk 0:01:46.6]} 15. Qxc6
{[%clk 0:00:48.6]} 15... Rb8 {[%clk 0:01:46.5]} 16. Rc1 {[%clk 0:00:44.5]} 16...
Bb4 {[%clk 0:01:41.7]} 17. Qc7+ {[%clk 0:00:38.2]} 17... Bd7 {[%clk 0:01:41.5]}
18. Qf4 {[%clk 0:00:18.5]} 18... Bxd2+ {[%clk 0:01:40.1]} 19. Kxd2 {[%clk
0:00:19.4]} 19... Rxb2+ {[%clk 0:01:40.9]} 20. Ke1 {[%clk 0:00:11.4]} 20... Qa5+
{[%clk 0:01:36.6]} 21. Kf1 {[%clk 0:00:10.6]} 21... Qd2 {[%clk 0:01:37.5]} 22.
Qh6+ {[%clk 0:00:02.1]} 22... Kf7 {[%clk 0:01:38]} 23. Bxg6+ {[%clk 0:00:02.1]}
23... hxg6 {[%clk 0:01:38.9]} 24. Qxg6+ {[%clk 0:00:01.1]} 24... Kxg6 {[%clk
0:01:38.8]} 0-1

[Event "*** Titled Tuesday Blitz"]
[Site "Chess.com"]
[Date "2021.03.02"]
[Round "4"]
[White "DLR7"]
[Black "Babujj"]
[Result "1-0"]
[WhiteElo "2625"]
[BlackElo "2468"]
[TimeControl "180+1"]
[EndTime "10:37:45 PST"]
[Termination "DLR7 won by resignation"]

1. e4 {[%clk 0:03:00.9]} 1... e6 {[%clk 0:02:58.5]} 2. d4 {[%clk 0:03:00.4]}
2... d5 {[%clk 0:02:58.9]} 3. Bd3 {[%clk 0:02:59.1]} 3... Nf6 {[%clk 0:02:53.8]}
4. e5 {[%clk 0:02:58.4]} 4... Nfd7 {[%clk 0:02:53.9]} 5. f4 {[%clk 0:02:57.3]}
5... c5 {[%clk 0:02:53.8]} 6. c3 {[%clk 0:02:55.6]} 6... Nc6 {[%clk 0:02:53.9]}
7. Nf3 {[%clk 0:02:55.3]} 7... Be7 {[%clk 0:02:48.3]} 8. O-O {[%clk 0:02:53.3]}
8... a6 {[%clk 0:02:37.1]} 9. Be3 {[%clk 0:02:50.8]} 9... b5 {[%clk 0:02:36.7]}
10. a3 {[%clk 0:02:44.2]} 10... Qb6 {[%clk 0:02:29.8]} 11. Nbd2 {[%clk
0:02:41.4]} 11... Bb7 {[%clk 0:02:27.5]} 12. Qe1 {[%clk 0:02:32.5]} 12... O-O-O
{[%clk 0:02:24]} 13. Ng5 {[%clk 0:02:29.5]} 13... Bxg5 {[%clk 0:01:25.5]} 14.
fxg5 {[%clk 0:02:27.8]} 14... Ndxe5 {[%clk 0:01:25.5]} 15. dxe5 {[%clk 0:02:21]}
15... Nxe5 {[%clk 0:01:26.4]} 16. Be2 {[%clk 0:02:13.5]} 16... d4 {[%clk
0:01:25.6]} 17. cxd4 {[%clk 0:02:11.5]} 17... cxd4 {[%clk 0:01:26.5]} 18. Rc1+
{[%clk 0:02:09.3]} 18... Nc6 {[%clk 0:01:10.7]} 19. Bf2 {[%clk 0:02:04.5]} 19...
e5 {[%clk 0:01:07.1]} 20. Bd3 {[%clk 0:02:01.7]} 20... Rhe8 {[%clk 0:01:03.3]}
21. Bg3 {[%clk 0:01:58.3]} 21... Re7 {[%clk 0:00:59.7]} 22. Ne4 {[%clk
0:01:55.8]} 22... Kb8 {[%clk 0:00:58.2]} 23. Nc5 {[%clk 0:01:43.6]} 23... Ba8
{[%clk 0:00:46.1]} 24. a4 {[%clk 0:01:20.9]} 24... Rd5 {[%clk 0:00:44.9]} 25. b4
{[%clk 0:01:18.4]} 25... Nxb4 {[%clk 0:00:42.3]} 26. Qxb4 {[%clk 0:01:16]} 1-0

[Event "*** Titled Tuesday Blitz"]
[Site "Chess.com"]
[Date "2021.03.02"]
[Round "4"]
[White "fabianvivasz"]
[Black "Brave_spirit12"]
[Result "0-1"]
[WhiteElo "2337"]
[BlackElo "2521"]
[TimeControl "180+1"]
[EndTime "10:37:45 PST"]
[Termination "Brave_spirit12 won by resignation"]

1. e4 {[%clk 0:03:00.9]} 1... e6 {[%clk 0:02:59.7]} 2. d4 {[%clk 0:03:00.5]}
2... d5 {[%clk 0:03:00.6]} 3. Nd2 {[%clk 0:03:01]} 3... c5 {[%clk 0:03:00.5]} 4.
Ngf3 {[%clk 0:03:01.1]} 4... Nc6 {[%clk 0:02:52.3]} 5. exd5 {[%clk 0:02:56.3]}
5... exd5 {[%clk 0:02:53.2]} 6. Bb5 {[%clk 0:02:55.8]} 6... Bd6 {[%clk
0:02:52.6]} 7. dxc5 {[%clk 0:02:52.5]} 7... Bxc5 {[%clk 0:02:53.5]} 8. O-O
{[%clk 0:02:52.7]} 8... Ne7 {[%clk 0:02:53.1]} 9. Nb3 {[%clk 0:02:52.2]} 9...
Bd6 {[%clk 0:02:51.8]} 10. Bg5 {[%clk 0:02:40.4]} 10... f6 {[%clk 0:02:50.9]}
11. Be3 {[%clk 0:02:34.2]} 11... O-O {[%clk 0:02:51.8]} 12. h3 {[%clk
0:02:15.5]} 12... Bf5 {[%clk 0:02:47.6]} 13. Nfd4 {[%clk 0:02:12.5]} 13... Bd7
{[%clk 0:02:36.5]} 14. Re1 {[%clk 0:02:06.3]} 14... a6 {[%clk 0:02:32]} 15. Be2
{[%clk 0:02:01.1]} 15... Ne5 {[%clk 0:02:25.9]} 16. Nf3 {[%clk 0:01:23.8]} 16...
Bc6 {[%clk 0:02:19.4]} 17. Nbd4 {[%clk 0:01:19.4]} 17... Qd7 {[%clk 0:02:17.4]}
18. Nxc6 {[%clk 0:01:10.9]} 18... bxc6 {[%clk 0:02:15.4]} 19. c4 {[%clk
0:01:05.9]} 19... Rae8 {[%clk 0:02:11.9]} 20. Qa4 {[%clk 0:00:59.6]} 20... Bb8
{[%clk 0:02:03.4]} 21. Rad1 {[%clk 0:00:50.8]} 21... Nf5 {[%clk 0:01:53.6]} 22.
Nxe5 {[%clk 0:00:41.4]} 22... Rxe5 {[%clk 0:01:50.4]} 23. Bg4 {[%clk 0:00:27.4]}
23... Qc7 {[%clk 0:01:44.9]} 24. g3 {[%clk 0:00:07.7]} 24... Nxe3 {[%clk
0:01:39.9]} 25. fxe3 {[%clk 0:00:07.2]} 25... Re4 {[%clk 0:01:39.1]} 0-1

[Event "*** Titled Tuesday Blitz"]
[Site "Chess.com"]
[Date "2021.03.02"]
[Round "4"]
[White "kingofthenil"]
[Black "Astaneh"]
[Result "0-1"]
[WhiteElo "2839"]
[BlackElo "2641"]
[TimeControl "180+1"]
[EndTime "10:37:47 PST"]
[Termination "Astaneh won by resignation"]

1. e4 {[%clk 0:03:00.9]} 1... c6 {[%clk 0:02:59]} 2. c4 {[%clk 0:02:55.9]} 2...
d5 {[%clk 0:02:59.9]} 3. cxd5 {[%clk 0:02:56.8]} 3... cxd5 {[%clk 0:03:00.3]} 4.
exd5 {[%clk 0:02:57.7]} 4... Nf6 {[%clk 0:03:00.1]} 5. Nc3 {[%clk 0:02:58.2]}
5... Nxd5 {[%clk 0:02:58.7]} 6. Nf3 {[%clk 0:02:58.8]} 6... g6 {[%clk
0:02:57.5]} 7. Bc4 {[%clk 0:02:58.3]} 7... Nb6 {[%clk 0:02:56.5]} 8. Bb3 {[%clk
0:02:57.9]} 8... Bg7 {[%clk 0:02:55.7]} 9. d4 {[%clk 0:02:58.1]} 9... O-O {[%clk
0:02:54.2]} 10. O-O {[%clk 0:02:57.9]} 10... Nc6 {[%clk 0:02:54.4]} 11. d5
{[%clk 0:02:58.8]} 11... Na5 {[%clk 0:02:54.1]} 12. h3 {[%clk 0:02:59.7]} 12...
Bf5 {[%clk 0:02:48.8]} 13. Re1 {[%clk 0:02:59.2]} 13... Rc8 {[%clk 0:02:48]} 14.
Bg5 {[%clk 0:02:58]} 14... Re8 {[%clk 0:02:44.3]} 15. Qe2 {[%clk 0:02:43]} 15...
Nxb3 {[%clk 0:02:35.6]} 16. axb3 {[%clk 0:02:40.6]} 16... Nxd5 {[%clk
0:02:35.9]} 17. Rxa7 {[%clk 0:01:52.6]} 17... Nxc3 {[%clk 0:02:32.4]} 18. bxc3
{[%clk 0:01:50.4]} 18... Qb6 {[%clk 0:02:30.9]} 19. Be3 {[%clk 0:01:40.6]} 19...
Qxb3 {[%clk 0:02:30.2]} 20. Nd4 {[%clk 0:01:36.7]} 20... Qxc3 {[%clk 0:02:22.7]}
21. Nxf5 {[%clk 0:01:34.2]} 21... gxf5 {[%clk 0:02:23.4]} 22. Rxb7 {[%clk
0:01:32.1]} 22... Qe5 {[%clk 0:02:03.8]} 23. Qf3 {[%clk 0:01:25.7]} 23... Qe4
{[%clk 0:02:01.5]} 24. Qg3 {[%clk 0:01:14.2]} 24... Qxb7 {[%clk 0:01:55.8]} 25.
Bh6 {[%clk 0:01:02.3]} 25... Qb2 {[%clk 0:01:54.7]} 26. Bf4 {[%clk 0:00:15.8]}
26... Qf6 {[%clk 0:01:49]} 27. Re3 {[%clk 0:00:10.6]} 27... e5 {[%clk
0:01:44.4]} 28. Bxe5 {[%clk 0:00:06.3]} 28... Rxe5 {[%clk 0:01:42.8]} 0-1

[Event "*** Titled Tuesday Blitz"]
[Site "Chess.com"]
[Date "2021.03.02"]
[Round "4"]
[White "Enriquack"]
[Black "publicaccountcze"]
[Result "1-0"]
[WhiteElo "2447"]
[BlackElo "2209"]
[TimeControl "180+1"]
[EndTime "10:37:47 PST"]
[Termination "Enriquack won by resignation"]

1. e4 {[%clk 0:03:00.9]} 1... c5 {[%clk 0:02:58.9]} 2. Nc3 {[%clk 0:03:00.2]}
2... d6 {[%clk 0:02:59.2]} 3. f4 {[%clk 0:02:59.8]} 3... Nc6 {[%clk 0:02:58.5]}
4. Nf3 {[%clk 0:02:59.3]} 4... e6 {[%clk 0:02:58]} 5. Bb5 {[%clk 0:02:58.4]}
5... Nf6 {[%clk 0:02:57]} 6. Bxc6+ {[%clk 0:02:54.9]} 6... bxc6 {[%clk
0:02:55.9]} 7. O-O {[%clk 0:02:55.4]} 7... Be7 {[%clk 0:02:52]} 8. d3 {[%clk
0:02:52.4]} 8... O-O {[%clk 0:02:49.5]} 9. e5 {[%clk 0:02:52.1]} 9... Nd5 {[%clk
0:02:45.2]} 10. Ne4 {[%clk 0:02:49.1]} 10... Ba6 {[%clk 0:02:34.8]} 11. c4
{[%clk 0:02:29.5]} 11... Nb6 {[%clk 0:02:17.3]} 12. b3 {[%clk 0:02:28.1]} 12...
f6 {[%clk 0:02:09.5]} 13. Bb2 {[%clk 0:02:24.3]} 13... fxe5 {[%clk 0:02:04.2]}
14. fxe5 {[%clk 0:02:24.5]} 14... d5 {[%clk 0:02:02]} 15. Ng3 {[%clk 0:02:24.4]}
15... Qc7 {[%clk 0:01:55]} 16. Qe2 {[%clk 0:02:12.5]} 16... Bb7 {[%clk
0:01:42.7]} 17. Nd2 {[%clk 0:01:34.6]} 17... a5 {[%clk 0:01:38.8]} 18. Qg4
{[%clk 0:01:28.6]} 18... Qd7 {[%clk 0:01:21.1]} 19. Nh5 {[%clk 0:01:25.7]} 19...
g6 {[%clk 0:00:51.5]} 20. Nf6+ {[%clk 0:01:22.1]} 20... Bxf6 {[%clk 0:00:48.7]}
21. exf6 {[%clk 0:01:18.5]} 21... Kf7 {[%clk 0:00:48.1]} 22. Nf3 {[%clk
0:01:17.6]} 22... Kg8 {[%clk 0:00:36.6]} 23. Ne5 {[%clk 0:01:13.5]} 1-0

[Event "*** Titled Tuesday Blitz"]
[Site "Chess.com"]
[Date "2021.03.02"]
[Round "4"]
[White "DrCeltic"]
[Black "andy_rekt"]
[Result "1-0"]
[WhiteElo "2440"]
[BlackElo "2267"]
[TimeControl "180+1"]
[EndTime "10:37:48 PST"]
[Termination "DrCeltic won by resignation"]

1. e4 {[%clk 0:03:00.9]} 1... e6 {[%clk 0:02:59.2]} 2. d4 {[%clk 0:03:00.4]}
2... d5 {[%clk 0:02:59.4]} 3. Nd2 {[%clk 0:03:00.8]} 3... Nf6 {[%clk 0:02:59.2]}
4. e5 {[%clk 0:02:58.7]} 4... Nfd7 {[%clk 0:02:59.8]} 5. Bd3 {[%clk 0:02:59.5]}
5... c5 {[%clk 0:03:00.4]} 6. f4 {[%clk 0:02:59.6]} 6... cxd4 {[%clk 0:02:54.9]}
7. Ngf3 {[%clk 0:02:59.5]} 7... Nc6 {[%clk 0:02:55.2]} 8. O-O {[%clk 0:02:59.7]}
8... Bc5 {[%clk 0:02:51.5]} 9. Nb3 {[%clk 0:02:59.2]} 9... Bb6 {[%clk
0:02:50.9]} 10. Kh1 {[%clk 0:02:56.3]} 10... O-O {[%clk 0:02:48.2]} 11. Bxh7+
{[%clk 0:02:31.1]} 11... Kxh7 {[%clk 0:02:47.3]} 12. Ng5+ {[%clk 0:02:32]} 12...
Kg6 {[%clk 0:02:33.5]} 13. Qd3+ {[%clk 0:02:10.9]} 13... f5 {[%clk 0:02:27]} 14.
exf6+ {[%clk 0:02:10.7]} 14... Kxf6 {[%clk 0:02:24.6]} 15. Qh3 {[%clk
0:01:23.5]} 15... Nc5 {[%clk 0:02:07.5]} 16. Nh7+ {[%clk 0:01:10.6]} 16... Ke7
{[%clk 0:02:06.6]} 17. f5 {[%clk 0:01:04.9]} 17... Kd7 {[%clk 0:01:12.5]} 18.
Nxf8+ {[%clk 0:01:01.7]} 18... Kc7 {[%clk 0:01:05.1]} 19. Nxe6+ {[%clk
0:00:51.9]} 19... Bxe6 {[%clk 0:00:57.9]} 20. fxe6 {[%clk 0:00:52.8]} 20... Nxb3
{[%clk 0:00:51.5]} 21. Bf4+ {[%clk 0:00:47.3]} 21... Kc8 {[%clk 0:00:49.3]} 22.
e7+ {[%clk 0:00:45.7]} 1-0

[Event "*** Titled Tuesday Blitz"]
[Site "Chess.com"]
[Date "2021.03.02"]
[Round "4"]
[White "FLamps8"]
[Black "Murad_Ibrahimli"]
[Result "0-1"]
[WhiteElo "2664"]
[BlackElo "2862"]
[TimeControl "180+1"]
[EndTime "10:37:50 PST"]
[Termination "Murad_Ibrahimli won by resignation"]

1. d4 {[%clk 0:03:00.9]} 1... d5 {[%clk 0:02:58.9]} 2. Bf4 {[%clk 0:03:01.1]}
2... Nf6 {[%clk 0:02:58.2]} 3. e3 {[%clk 0:03:01.5]} 3... c5 {[%clk 0:02:58.5]}
4. c3 {[%clk 0:03:01.5]} 4... Qb6 {[%clk 0:02:58.7]} 5. Qb3 {[%clk 0:03:00.3]}
5... Nc6 {[%clk 0:02:58.8]} 6. Nd2 {[%clk 0:02:59.7]} 6... Bf5 {[%clk
0:02:57.4]} 7. dxc5 {[%clk 0:02:56.2]} 7... Qxb3 {[%clk 0:02:53.2]} 8. Nxb3
{[%clk 0:02:57.1]} 8... e5 {[%clk 0:02:52.8]} 9. Bg3 {[%clk 0:02:55.7]} 9... Ne4
{[%clk 0:02:53.1]} 10. O-O-O {[%clk 0:02:41.9]} 10... O-O-O {[%clk 0:02:49.4]}
11. Nf3 {[%clk 0:02:19.9]} 11... f6 {[%clk 0:02:48]} 12. c4 {[%clk 0:02:19.8]}
12... Nb4 {[%clk 0:02:42.5]} 13. Rxd5 {[%clk 0:01:20.9]} 13... Nxd5 {[%clk
0:02:26.7]} 14. cxd5 {[%clk 0:01:21.8]} 14... Rxd5 {[%clk 0:02:23.8]} 15. Bc4
{[%clk 0:01:15.8]} 15... Rd8 {[%clk 0:02:22.4]} 16. Nh4 {[%clk 0:01:05.3]} 16...
Bd7 {[%clk 0:02:22]} 17. f4 {[%clk 0:00:54]} 17... exf4 {[%clk 0:02:17.7]} 18.
exf4 {[%clk 0:00:47.5]} 18... Nxc5 {[%clk 0:02:17.6]} 19. Nxc5 {[%clk
0:00:42.7]} 19... Bxc5 {[%clk 0:02:16.9]} 20. Nf3 {[%clk 0:00:34.9]} 20... Bf5
{[%clk 0:02:11.8]} 21. Re1 {[%clk 0:00:30.3]} 21... Rhe8 {[%clk 0:02:11]} 22.
Rxe8 {[%clk 0:00:28.8]} 22... Rxe8 {[%clk 0:02:11.2]} 23. Kd2 {[%clk 0:00:27.8]}
23... Be4 {[%clk 0:02:05.8]} 24. Nh4 {[%clk 0:00:22.5]} 24... Rd8+ {[%clk
0:02:04.8]} 25. Ke2 {[%clk 0:00:22]} 25... g6 {[%clk 0:01:53]} 26. Be6+ {[%clk
0:00:18.6]} 26... Kc7 {[%clk 0:01:50.8]} 27. f5+ {[%clk 0:00:19.5]} 27... Kc6
{[%clk 0:01:50.9]} 28. a3 {[%clk 0:00:10.3]} 28... Bd3+ {[%clk 0:01:46]} 29. Kf3
{[%clk 0:00:10.2]} 29... g5 {[%clk 0:01:46]} 0-1

[Event "*** Titled Tuesday Blitz"]
[Site "Chess.com"]
[Date "2021.03.02"]
[Round "4"]
[White "SamuelGhimpu2003"]
[Black "GLeruste"]
[Result "0-1"]
[WhiteElo "2637"]
[BlackElo "2495"]
[TimeControl "180+1"]
[EndTime "10:37:54 PST"]
[Termination "GLeruste won by resignation"]

1. e4 {[%clk 0:03:00.9]} 1... e5 {[%clk 0:03:00.2]} 2. Nf3 {[%clk 0:03:00.5]}
2... Nf6 {[%clk 0:03:00.8]} 3. Nxe5 {[%clk 0:02:57.8]} 3... Nxe4 {[%clk
0:03:01.1]} 4. Qe2 {[%clk 0:02:56.3]} 4... Qe7 {[%clk 0:03:01.5]} 5. Qxe4 {[%clk
0:02:52.3]} 5... d6 {[%clk 0:03:02]} 6. d4 {[%clk 0:02:50.3]} 6... dxe5 {[%clk
0:03:02.5]} 7. dxe5 {[%clk 0:02:45.4]} 7... Nc6 {[%clk 0:03:02.1]} 8. Bb5 {[%clk
0:02:30.4]} 8... Bd7 {[%clk 0:03:02.6]} 9. O-O {[%clk 0:02:30.6]} 9... O-O-O
{[%clk 0:03:02.2]} 10. Bxc6 {[%clk 0:02:16.6]} 10... Bxc6 {[%clk 0:03:02]} 11.
Qe3 {[%clk 0:02:17.2]} 11... Kb8 {[%clk 0:03:01]} 12. Nc3 {[%clk 0:02:16.4]}
12... Rg8 {[%clk 0:02:28.5]} 13. a4 {[%clk 0:01:35.3]} 13... f6 {[%clk
0:02:18.5]} 14. exf6 {[%clk 0:01:31.9]} 14... gxf6 {[%clk 0:02:18]} 15. g3
{[%clk 0:01:19.4]} 15... Qd7 {[%clk 0:01:59.3]} 16. Qe2 {[%clk 0:01:13.3]} 16...
Qh3 {[%clk 0:01:48.7]} 17. f3 {[%clk 0:01:11.3]} 17... Bc5+ {[%clk 0:01:37]} 18.
Kh1 {[%clk 0:01:11.6]} 18... Rxg3 {[%clk 0:01:26.8]} 19. Ne4 {[%clk 0:01:12]}
19... Rxf3 {[%clk 0:01:05.9]} 20. Rxf3 {[%clk 0:01:01.1]} 20... Bxe4 {[%clk
0:00:56.1]} 0-1

[Event "*** Titled Tuesday Blitz"]
[Site "Chess.com"]
[Date "2021.03.02"]
[Round "4"]
[White "Unknown_IM"]
[Black "masrahi"]
[Result "1-0"]
[WhiteElo "2378"]
[BlackElo "2223"]
[TimeControl "180+1"]
[EndTime "10:37:54 PST"]
[Termination "Unknown_IM won by resignation"]

1. e4 {[%clk 0:03:00.9]} 1... e5 {[%clk 0:03:00]} 2. Nf3 {[%clk 0:03:00.1]} 2...
Nc6 {[%clk 0:03:00.2]} 3. Bb5 {[%clk 0:03:00.6]} 3... a6 {[%clk 0:02:59.8]} 4.
Ba4 {[%clk 0:03:01]} 4... d6 {[%clk 0:02:59.8]} 5. c3 {[%clk 0:03:00.5]} 5...
Bd7 {[%clk 0:02:56.6]} 6. d3 {[%clk 0:02:58.4]} 6... Qf6 {[%clk 0:02:52.5]} 7.
O-O {[%clk 0:02:57.6]} 7... h6 {[%clk 0:02:46.3]} 8. d4 {[%clk 0:02:56.9]} 8...
g5 {[%clk 0:02:43.9]} 9. dxe5 {[%clk 0:02:55.2]} 9... dxe5 {[%clk 0:02:37.7]}
10. Qb3 {[%clk 0:02:49.8]} 10... O-O-O {[%clk 0:02:28.9]} 11. Be3 {[%clk
0:02:45]} 11... Nge7 {[%clk 0:02:16]} 12. Nbd2 {[%clk 0:02:41.3]} 12... Ng6
{[%clk 0:02:15.3]} 13. Rfd1 {[%clk 0:02:40.1]} 13... Nf4 {[%clk 0:01:59.4]} 14.
Bxf4 {[%clk 0:02:31.6]} 14... gxf4 {[%clk 0:01:57.9]} 15. Nc4 {[%clk 0:02:30.9]}
15... Bc5 {[%clk 0:01:26.1]} 16. Bxc6 {[%clk 0:02:20.5]} 16... Bxc6 {[%clk
0:01:25.7]} 17. Ncxe5 {[%clk 0:02:19.9]} 17... Bxe4 {[%clk 0:01:23.4]} 18. Qxf7
{[%clk 0:02:17.9]} 18... Qb6 {[%clk 0:00:39.9]} 19. Nd4 {[%clk 0:02:06.7]} 19...
Bxd4 {[%clk 0:00:36.4]} 20. cxd4 {[%clk 0:02:06.6]} 20... Rxd4 {[%clk
0:00:35.8]} 21. Rac1 {[%clk 0:02:03.4]} 21... Rhd8 {[%clk 0:00:29.4]} 22. Rxd4
{[%clk 0:02:01]} 22... Rxd4 {[%clk 0:00:28.7]} 23. Nc4 {[%clk 0:01:53.8]} 23...
Qc6 {[%clk 0:00:09.5]} 24. f3 {[%clk 0:01:39.2]} 24... Bd5 {[%clk 0:00:08.3]}
25. Qf8+ {[%clk 0:01:35.1]} 25... Kd7 {[%clk 0:00:07.2]} 26. Ne5+ {[%clk
0:01:35.4]} 1-0

[Event "*** Titled Tuesday Blitz"]
[Site "Chess.com"]
[Date "2021.03.02"]
[Round "4"]
[White "MergenKakabaev"]
[Black "enriquebutti"]
[Result "0-1"]
[WhiteElo "2383"]
[BlackElo "2180"]
[TimeControl "180+1"]
[EndTime "10:37:55 PST"]
[Termination "enriquebutti won by resignation"]

1. e4 {[%clk 0:02:57.2]} 1... c5 {[%clk 0:02:58.9]} 2. Nf3 {[%clk 0:02:56.7]}
2... d6 {[%clk 0:02:58.6]} 3. d4 {[%clk 0:02:56.1]} 3... cxd4 {[%clk 0:02:58.3]}
4. Nxd4 {[%clk 0:02:57]} 4... Nf6 {[%clk 0:02:58.2]} 5. Nc3 {[%clk 0:02:56.9]}
5... a6 {[%clk 0:02:57.9]} 6. Bg5 {[%clk 0:02:57.3]} 6... e6 {[%clk 0:02:57.5]}
7. f4 {[%clk 0:02:56.6]} 7... b5 {[%clk 0:02:57.2]} 8. Qf3 {[%clk 0:02:42.3]}
8... Bb7 {[%clk 0:02:56.5]} 9. a3 {[%clk 0:02:41.3]} 9... Nbd7 {[%clk
0:02:55.8]} 10. O-O-O {[%clk 0:02:40.7]} 10... Rc8 {[%clk 0:02:55.1]} 11. Bd3
{[%clk 0:02:27.1]} 11... Rxc3 {[%clk 0:02:53.8]} 12. bxc3 {[%clk 0:02:16.7]}
12... Qc7 {[%clk 0:02:53.1]} 13. Kd2 {[%clk 0:02:14.9]} 13... Be7 {[%clk
0:02:47.4]} 14. g4 {[%clk 0:02:11.7]} 14... Nc5 {[%clk 0:02:21.6]} 15. Bxf6
{[%clk 0:02:07.7]} 15... gxf6 {[%clk 0:02:05.3]} 16. f5 {[%clk 0:02:05.4]} 16...
d5 {[%clk 0:01:57.5]} 17. exd5 {[%clk 0:01:04.9]} 17... Bxd5 {[%clk 0:01:56.2]}
18. Qe2 {[%clk 0:00:55.4]} 18... e5 {[%clk 0:01:51.8]} 19. Nb3 {[%clk
0:00:40.5]} 19... Na4 {[%clk 0:01:35.2]} 20. Ke3 {[%clk 0:00:19.6]} 20... Nxc3
{[%clk 0:01:24.4]} 21. Qd2 {[%clk 0:00:15.6]} 21... Qb6+ {[%clk 0:01:17.8]} 0-1